[Event "Titled Tuesday Blitz September 27 Early 2022"]
[White "Stremavicius, Titas"]
[Black "Aizpurua, Patrick Emilio"]
[WhiteFideId "12804444"]
[BlackFideId "6600522"]
[WhiteElo "2399"]
[BlackElo "2378"]
[Result "1-0"]
[Round "06"]
[TimeControl "180+1"]
[Date "2022.09.27"]
[WhiteClock "0:00:14"]
[BlackClock "0:00:10"]

1. c4 {[%clk 0:02:47]}  e5 {[%clk 0:02:59]} 2. Nc3 {[%clk 0:02:47]}  Bb4 {[%clk 0:02:59]} 3. Nd5 {[%clk 0:02:47]}  Bc5 {[%clk 0:02:59]} 4. e3 {[%clk 0:02:47]}  c6 {[%clk 0:02:59]} 5. d4 {[%clk 0:02:39]}  exd4 {[%clk 0:02:42]} 6. exd4 {[%clk 0:02:38]}  Be7 {[%clk 0:02:16]} 7. Nc3 {[%clk 0:02:34]}  Nf6 {[%clk 0:02:15]} 8. Nf3 {[%clk 0:02:33]}  d5 {[%clk 0:02:14]} 9. cxd5 {[%clk 0:02:27]}  Nxd5 {[%clk 0:02:15]} 10. Bc4 {[%clk 0:02:27]}  Be6 {[%clk 0:02:15]} 11. Qb3 {[%clk 0:02:27]}  b6 {[%clk 0:01:47]} 12. O-O {[%clk 0:02:22]}  O-O {[%clk 0:01:14]} 13. Re1 {[%clk 0:02:19]}  Re8 {[%clk 0:01:13]} 14. Bd2 {[%clk 0:02:13]}  a6 {[%clk 0:01:07]} 15. Nxd5 {[%clk 0:02:02]}  cxd5 {[%clk 0:00:54]} 16. Bd3 {[%clk 0:02:02]}  Nd7 {[%clk 0:00:52]} 17. Rac1 {[%clk 0:02:01]}  b5 {[%clk 0:00:49]} 18. a4 {[%clk 0:01:59]}  bxa4 {[%clk 0:00:47]} 19. Qxa4 {[%clk 0:01:59]}  Nb6 {[%clk 0:00:42]} 20. Qa2 {[%clk 0:01:58]}  Nc4 {[%clk 0:00:40]} 21. Bf4 {[%clk 0:01:58]}  Qb6 {[%clk 0:00:36]} 22. b3 {[%clk 0:01:58]}  Nd6 {[%clk 0:00:36]} 23. Qa4 {[%clk 0:01:38]}  Red8 {[%clk 0:00:25]} 24. Ne5 {[%clk 0:01:36]}  Nb5 {[%clk 0:00:22]} 25. Nc6 {[%clk 0:01:35]}  Re8 {[%clk 0:00:18]} 26. Nxe7+ {[%clk 0:01:29]}  Rxe7 {[%clk 0:00:18]} 27. Rc5 {[%clk 0:01:28]}  Rae8 {[%clk 0:00:17]} 28. Ra1 {[%clk 0:00:42]}  Bc8 {[%clk 0:00:12]} 29. Be3 {[%clk 0:00:41]}  h6 {[%clk 0:00:11]} 30. Bxb5 {[%clk 0:00:37]}  axb5 {[%clk 0:00:10]} 31. Rxb5 {[%clk 0:00:37]}  Qd6 {[%clk 0:00:09]} 32. Rb8 {[%clk 0:00:31]}  Bd7 {[%clk 0:00:09]} 33. Rxe8+ {[%clk 0:00:31]}  Rxe8 {[%clk 0:00:09]} 34. Qa7 {[%clk 0:00:28]}  Bf5 {[%clk 0:00:08]} 35. h3 {[%clk 0:00:25]}  Qb4 {[%clk 0:00:08]} 36. Qa4 {[%clk 0:00:23]}  Rb8 {[%clk 0:00:08]} 37. Bf4 {[%clk 0:00:22]}  Rb7 {[%clk 0:00:07]} 38. Ra3 {[%clk 0:00:17]}  Bc2 {[%clk 0:00:06]} 39. Qe8+ {[%clk 0:00:14]}  Kh7 {[%clk 0:00:06]} 40. Ra8 {[%clk 0:00:14]}  Qxb3 {[%clk 0:00:03]} 41. Qg8+ {[%clk 0:00:14]}  Kg6 {[%clk 0:00:04]} 42. Kh2 {[%clk 0:00:08]}  Bf5 {[%clk 0:00:03]} 43. Qh8 {[%clk 0:00:08]}  Be6 {[%clk 0:00:03]} 44. Bxh6 {[%clk 0:00:07]}  gxh6 {[%clk 0:00:03]} 45. Rg8+ {[%clk 0:00:08]}  Kf5 {[%clk 0:00:03]} 46. Qh7+ {[%clk 0:00:08]}  Kf6 {[%clk 0:00:04]} 47. Qxh6+ {[%clk 0:00:08]}  Ke7 {[%clk 0:00:04]} 48. Qf8+ {[%clk 0:00:09]}  Kf6 {[%clk 0:00:04]} 49. Qd8+ {[%clk 0:00:09]}  Kf5 {[%clk 0:00:04]} 50. Qg5+ {[%clk 0:00:08]}  Ke4 {[%clk 0:00:04]} 51. Qe5+ {[%clk 0:00:08]}  Kd3 {[%clk 0:00:04]} 52. Rg3+ {[%clk 0:00:09]}  Kc4 {[%clk 0:00:05]} 53. Rxb3 {[%clk 0:00:10]}  Rxb3 {[%clk 0:00:05]} 54. h4 {[%clk 0:00:11]}  Rd3 {[%clk 0:00:06]} 55. f3 {[%clk 0:00:09]}  Rxd4 {[%clk 0:00:06]} 56. Kg3 {[%clk 0:00:10]}  Rd2 {[%clk 0:00:06]} 57. h5 {[%clk 0:00:10]}  d4 {[%clk 0:00:06]} 58. h6 {[%clk 0:00:11]}  Rd1 {[%clk 0:00:06]} 59. h7 {[%clk 0:00:11]}  Rh1 {[%clk 0:00:07]} 60. h8=Q {[%clk 0:00:12]}  Rxh8 {[%clk 0:00:08]} 61. Qxh8 {[%clk 0:00:12]}  d3 {[%clk 0:00:09]} 62. Kf2 {[%clk 0:00:13]}  d2 {[%clk 0:00:09]} 63. Ke2 {[%clk 0:00:13]}  d1=Q+ {[%clk 0:00:10]} 64. Kxd1 {[%clk 0:00:14]} 1-0


[Site "https://www.chess.com"]

[Event "Titled Tuesday Blitz September 27 Early 2022"]
[White "Svane, Frederik"]
[Black "Erenberg, Ariel"]
[WhiteFideId "12923044"]
[BlackFideId "2811634"]
[WhiteElo "2459"]
[BlackElo "2243"]
[Result "0-1"]
[Round "06"]
[TimeControl "180+1"]
[Date "2022.09.27"]
[WhiteClock "0:00:55"]
[BlackClock "0:00:43"]

1. a3 {[%clk 0:03:00]}  c5 {[%clk 0:02:56]} 2. g3 {[%clk 0:02:56]}  Nc6 {[%clk 0:02:56]} 3. Bg2 {[%clk 0:02:56]}  g6 {[%clk 0:02:57]} 4. c4 {[%clk 0:02:56]}  Bg7 {[%clk 0:02:57]} 5. Nc3 {[%clk 0:02:57]}  Nf6 {[%clk 0:02:55]} 6. Rb1 {[%clk 0:02:54]}  O-O {[%clk 0:02:53]} 7. b4 {[%clk 0:02:53]}  d6 {[%clk 0:02:51]} 8. Nf3 {[%clk 0:02:51]}  e5 {[%clk 0:02:41]} 9. O-O {[%clk 0:02:44]}  Bf5 {[%clk 0:02:40]} 10. d3 {[%clk 0:02:34]}  Qd7 {[%clk 0:02:22]} 11. Ng5 {[%clk 0:02:22]}  h6 {[%clk 0:02:15]} 12. Nge4 {[%clk 0:02:21]}  Nxe4 {[%clk 0:02:03]} 13. dxe4 {[%clk 0:02:06]}  Be6 {[%clk 0:01:55]} 14. bxc5 {[%clk 0:02:06]}  Bxc4 {[%clk 0:01:49]} 15. cxd6 {[%clk 0:02:03]}  Nd4 {[%clk 0:01:43]} 16. Re1 {[%clk 0:01:37]}  Qxd6 {[%clk 0:01:11]} 17. e3 {[%clk 0:01:33]}  Ne2+ {[%clk 0:01:09]} 18. Nxe2 {[%clk 0:01:26]}  Qxd1 {[%clk 0:01:09]} 19. Rxd1 {[%clk 0:01:25]}  Bxe2 {[%clk 0:01:09]} 20. Rd5 {[%clk 0:01:16]}  Bc4 {[%clk 0:01:01]} 21. Rc5 {[%clk 0:01:08]}  Rfc8 {[%clk 0:00:57]} 22. Rxc8+ {[%clk 0:01:03]}  Rxc8 {[%clk 0:00:58]} 23. Rxb7 {[%clk 0:01:01]}  Rd8 {[%clk 0:00:56]} 24. Bf3 {[%clk 0:01:00]}  a5 {[%clk 0:00:48]} 25. Ra7 {[%clk 0:00:55]}  Rb8 {[%clk 0:00:45]} 26. Bd2 {[%clk 0:00:55]}  Rb1+ {[%clk 0:00:43]} 0-1


[Site "https://www.chess.com"]

[Event "Titled Tuesday Blitz September 27 Early 2022"]
[White "Svane, Rasmus"]
[Black "Saydaliev, Saidakbar"]
[WhiteFideId "4657101"]
[BlackFideId "14203693"]
[WhiteElo "2674"]
[BlackElo "2265"]
[Result "1-0"]
[Round "06"]
[TimeControl "180+1"]
[Date "2022.09.27"]
[WhiteClock "0:00:26"]
[BlackClock "0:00:05"]

1. Nf3 {[%clk 0:03:00]}  Nf6 {[%clk 0:02:59]} 2. g3 {[%clk 0:03:00]}  d5 {[%clk 0:02:58]} 3. Bg2 {[%clk 0:02:56]}  e6 {[%clk 0:02:58]} 4. O-O {[%clk 0:02:56]}  Be7 {[%clk 0:02:59]} 5. c4 {[%clk 0:02:56]}  O-O {[%clk 0:03:00]} 6. b3 {[%clk 0:02:57]}  c5 {[%clk 0:02:54]} 7. cxd5 {[%clk 0:02:57]}  exd5 {[%clk 0:02:54]} 8. d4 {[%clk 0:02:57]}  cxd4 {[%clk 0:02:53]} 9. Nxd4 {[%clk 0:02:54]}  Nc6 {[%clk 0:02:54]} 10. Nc3 {[%clk 0:02:51]}  Bg4 {[%clk 0:02:52]} 11. Bb2 {[%clk 0:02:48]}  Re8 {[%clk 0:02:52]} 12. Rc1 {[%clk 0:02:47]}  Rc8 {[%clk 0:02:50]} 13. Qd2 {[%clk 0:02:38]}  Nxd4 {[%clk 0:02:49]} 14. Qxd4 {[%clk 0:02:37]}  Bc5 {[%clk 0:02:50]} 15. Qd3 {[%clk 0:02:20]}  d4 {[%clk 0:02:28]} 16. Ne4 {[%clk 0:02:19]}  Bf5 {[%clk 0:02:20]} 17. Nxf6+ {[%clk 0:02:13]}  Qxf6 {[%clk 0:02:21]} 18. Qb5 {[%clk 0:01:36]}  Qb6 {[%clk 0:02:18]} 19. Qxb6 {[%clk 0:01:33]}  Bxb6 {[%clk 0:02:17]} 20. Rxc8 {[%clk 0:01:20]}  Rxc8 {[%clk 0:02:06]} 21. Rc1 {[%clk 0:01:20]}  Re8 {[%clk 0:01:45]} 22. Bf3 {[%clk 0:01:05]}  h6 {[%clk 0:01:44]} 23. Rd1 {[%clk 0:01:04]}  Be4 {[%clk 0:00:55]} 24. Bxe4 {[%clk 0:01:04]}  Rxe4 {[%clk 0:00:55]} 25. Kf1 {[%clk 0:01:05]}  g5 {[%clk 0:00:48]} 26. f3 {[%clk 0:01:05]}  Re6 {[%clk 0:00:48]} 27. Bxd4 {[%clk 0:01:05]}  Rd6 {[%clk 0:00:46]} 28. e3 {[%clk 0:01:04]}  Rc6 {[%clk 0:00:44]} 29. Bxb6 {[%clk 0:01:03]}  Rxb6 {[%clk 0:00:39]} 30. Rc1 {[%clk 0:01:02]}  a5 {[%clk 0:00:33]} 31. Rc4 {[%clk 0:01:01]}  Rd6 {[%clk 0:00:29]} 32. Ke2 {[%clk 0:01:01]}  b6 {[%clk 0:00:29]} 33. e4 {[%clk 0:00:59]}  Kg7 {[%clk 0:00:29]} 34. f4 {[%clk 0:00:56]}  gxf4 {[%clk 0:00:30]} 35. gxf4 {[%clk 0:00:57]}  Rg6 {[%clk 0:00:30]} 36. Kf3 {[%clk 0:00:56]}  Rd6 {[%clk 0:00:29]} 37. Ke3 {[%clk 0:00:51]}  Rg6 {[%clk 0:00:28]} 38. a4 {[%clk 0:00:47]}  h5 {[%clk 0:00:20]} 39. f5 {[%clk 0:00:34]}  Rg2 {[%clk 0:00:19]} 40. Rc6 {[%clk 0:00:34]}  Rxh2 {[%clk 0:00:18]} 41. Rxb6 {[%clk 0:00:34]}  h4 {[%clk 0:00:19]} 42. Kf3 {[%clk 0:00:33]}  Rh3+ {[%clk 0:00:15]} 43. Kg4 {[%clk 0:00:30]}  Re3 {[%clk 0:00:15]} 44. Kxh4 {[%clk 0:00:29]}  Rxe4+ {[%clk 0:00:15]} 45. Kg5 {[%clk 0:00:29]}  f6+ {[%clk 0:00:09]} 46. Rxf6 {[%clk 0:00:26]}  Rb4 {[%clk 0:00:10]} 47. Ra6 {[%clk 0:00:24]}  Rxb3 {[%clk 0:00:11]} 48. Ra7+ {[%clk 0:00:24]}  Kf8 {[%clk 0:00:11]} 49. Rxa5 {[%clk 0:00:25]}  Rb6 {[%clk 0:00:07]} 50. Ra8+ {[%clk 0:00:25]}  Kf7 {[%clk 0:00:06]} 51. Ra7+ {[%clk 0:00:26]}  Kf8 {[%clk 0:00:05]} 52. a5 {[%clk 0:00:26]} 1-0


[Site "https://www.chess.com"]

[Event "Titled Tuesday Blitz September 27 Early 2022"]
[White "Svicevic, Rastko"]
[Black "Tsukerman, Julia"]
[WhiteFideId "916315"]
[BlackFideId "2621649"]
[WhiteElo "2115"]
[BlackElo "1667"]
[Result "0-1"]
[Round "06"]
[TimeControl "180+1"]
[Date "2022.09.27"]
[WhiteClock "0:00:01"]
[BlackClock "0:00:08"]

1. d4 {[%clk 0:03:00]}  d5 {[%clk 0:02:58]} 2. Bg5 {[%clk 0:02:52]}  h6 {[%clk 0:02:55]} 3. Bh4 {[%clk 0:02:37]}  Nd7 {[%clk 0:02:52]} 4. e3 {[%clk 0:02:22]}  Ngf6 {[%clk 0:02:51]} 5. Bd3 {[%clk 0:02:19]}  e6 {[%clk 0:02:50]} 6. Nf3 {[%clk 0:02:18]}  Be7 {[%clk 0:02:50]} 7. O-O {[%clk 0:02:16]}  O-O {[%clk 0:02:49]} 8. Nbd2 {[%clk 0:02:17]}  c5 {[%clk 0:02:43]} 9. c3 {[%clk 0:02:15]}  b6 {[%clk 0:02:42]} 10. Re1 {[%clk 0:01:50]}  c4 {[%clk 0:02:38]} 11. Bf1 {[%clk 0:01:47]}  Bb7 {[%clk 0:02:37]} 12. b3 {[%clk 0:01:47]}  b5 {[%clk 0:02:37]} 13. a4 {[%clk 0:01:48]}  a6 {[%clk 0:02:34]} 14. b4 {[%clk 0:01:40]}  bxa4 {[%clk 0:02:15]} 15. Rxa4 {[%clk 0:01:38]}  Bc6 {[%clk 0:02:08]} 16. Ra5 {[%clk 0:01:36]}  Bb5 {[%clk 0:01:52]} 17. Ne5 {[%clk 0:01:35]}  Nxe5 {[%clk 0:01:40]} 18. dxe5 {[%clk 0:01:36]}  Nd7 {[%clk 0:01:40]} 19. Bxe7 {[%clk 0:01:37]}  Qxe7 {[%clk 0:01:40]} 20. Nf3 {[%clk 0:01:37]}  Nb8 {[%clk 0:01:34]} 21. Nd4 {[%clk 0:01:37]}  Nc6 {[%clk 0:01:26]} 22. Nxc6 {[%clk 0:01:33]}  Bxc6 {[%clk 0:01:26]} 23. Qa1 {[%clk 0:01:29]}  Bb5 {[%clk 0:01:24]} 24. Be2 {[%clk 0:01:29]}  Qc7 {[%clk 0:01:24]} 25. f4 {[%clk 0:01:27]}  f6 {[%clk 0:01:23]} 26. exf6 {[%clk 0:01:26]}  Rxf6 {[%clk 0:01:23]} 27. Qd1 {[%clk 0:01:20]}  Raf8 {[%clk 0:01:16]} 28. Qd4 {[%clk 0:01:19]}  R6f7 {[%clk 0:01:05]} 29. Bd1 {[%clk 0:01:11]}  Re7 {[%clk 0:00:57]} 30. Ba4 {[%clk 0:01:03]}  Qc6 {[%clk 0:00:52]} 31. Ra1 {[%clk 0:00:58]}  Qe8 {[%clk 0:00:37]} 32. Bxb5 {[%clk 0:00:44]}  axb5 {[%clk 0:00:36]} 33. h3 {[%clk 0:00:37]}  Rb7 {[%clk 0:00:28]} 34. Qc5 {[%clk 0:00:36]}  Qd7 {[%clk 0:00:20]} 35. Ra6 {[%clk 0:00:35]}  Re8 {[%clk 0:00:17]} 36. Rd6 {[%clk 0:00:35]}  Qe7 {[%clk 0:00:13]} 37. Raa6 {[%clk 0:00:34]}  e5 {[%clk 0:00:13]} 38. Re6 {[%clk 0:00:33]}  Qd7 {[%clk 0:00:12]} 39. Rad6 {[%clk 0:00:29]}  Qf7 {[%clk 0:00:10]} 40. Qxd5 {[%clk 0:00:20]}  Rxe6 {[%clk 0:00:08]} 41. Rxe6 {[%clk 0:00:17]}  exf4 {[%clk 0:00:08]} 42. e4 {[%clk 0:00:12]}  Rd7 {[%clk 0:00:08]} 43. Re8+ {[%clk 0:00:04]}  Kh7 {[%clk 0:00:07]} 44. Qxf7 {[%clk 0:00:04]}  Rxf7 {[%clk 0:00:08]} 45. Re5 {[%clk 0:00:03]}  Rb7 {[%clk 0:00:07]} 46. Kf2 {[%clk 0:00:01]}  g5 {[%clk 0:00:08]} 47. Kf3 {[%clk 0:00:01]}  Kg7 {[%clk 0:00:08]} 0-1


[Site "https://www.chess.com"]

[Event "Titled Tuesday Blitz September 27 Early 2022"]
[White "Tari, Aryan"]
[Black "Navarrete Mendez, Gonzalo Alberto"]
[WhiteFideId "1510045"]
[BlackFideId "5106850"]
[WhiteElo "2612"]
[BlackElo "2261"]
[Result "1/2-1/2"]
[Round "06"]
[TimeControl "180+1"]
[Date "2022.09.27"]
[WhiteClock "0:00:10"]
[BlackClock "0:00:22"]

1. Nc3 {[%clk 0:03:00]}  e5 {[%clk 0:02:54]} 2. e4 {[%clk 0:02:57]}  Nf6 {[%clk 0:02:53]} 3. f4 {[%clk 0:02:57]}  d5 {[%clk 0:02:53]} 4. fxe5 {[%clk 0:02:57]}  Nxe4 {[%clk 0:02:54]} 5. Qf3 {[%clk 0:02:58]}  Nc6 {[%clk 0:02:53]} 6. Bb5 {[%clk 0:02:55]}  Nxc3 {[%clk 0:02:52]} 7. bxc3 {[%clk 0:02:47]}  Qh4+ {[%clk 0:02:51]} 8. g3 {[%clk 0:02:34]}  Qe4+ {[%clk 0:02:51]} 9. Qxe4 {[%clk 0:02:30]}  dxe4 {[%clk 0:02:52]} 10. d4 {[%clk 0:02:21]}  exd3 {[%clk 0:02:49]} 11. cxd3 {[%clk 0:02:22]}  Bd7 {[%clk 0:02:48]} 12. Rb1 {[%clk 0:02:10]}  Nxe5 {[%clk 0:02:46]} 13. Bxd7+ {[%clk 0:02:06]}  Kxd7 {[%clk 0:02:47]} 14. Kd2 {[%clk 0:02:00]}  b6 {[%clk 0:02:34]} 15. d4 {[%clk 0:01:59]}  Nc4+ {[%clk 0:02:22]} 16. Kd3 {[%clk 0:01:59]}  Nd6 {[%clk 0:02:19]} 17. Nf3 {[%clk 0:01:59]}  f6 {[%clk 0:02:18]} 18. c4 {[%clk 0:01:46]}  Rd8 {[%clk 0:02:05]} 19. a4 {[%clk 0:01:39]}  Nb7 {[%clk 0:02:04]} 20. Kc2 {[%clk 0:01:31]}  Na5 {[%clk 0:01:58]} 21. Kc3 {[%clk 0:01:30]}  c5 {[%clk 0:01:51]} 22. d5 {[%clk 0:01:28]}  Bd6 {[%clk 0:01:44]} 23. Kd3 {[%clk 0:01:28]}  Rhe8 {[%clk 0:01:41]} 24. Bd2 {[%clk 0:01:27]}  Nb7 {[%clk 0:01:34]} 25. a5 {[%clk 0:01:28]}  Bc7 {[%clk 0:01:33]} 26. Nh4 {[%clk 0:01:12]}  Nd6 {[%clk 0:01:31]} 27. Bf4 {[%clk 0:01:09]}  Ne4 {[%clk 0:01:24]} 28. Rhf1 {[%clk 0:01:08]}  Bxf4 {[%clk 0:01:18]} 29. Rxf4 {[%clk 0:01:08]}  Nd6 {[%clk 0:01:12]} 30. Nf5 {[%clk 0:00:46]}  Nxf5 {[%clk 0:01:08]} 31. Rxf5 {[%clk 0:00:47]}  Kc7 {[%clk 0:01:05]} 32. g4 {[%clk 0:00:42]}  Re7 {[%clk 0:00:58]} 33. g5 {[%clk 0:00:41]}  fxg5 {[%clk 0:00:55]} 34. Rxg5 {[%clk 0:00:42]}  Rde8 {[%clk 0:00:53]} 35. Rg3 {[%clk 0:00:32]}  g6 {[%clk 0:00:53]} 36. axb6+ {[%clk 0:00:18]}  axb6 {[%clk 0:00:53]} 37. d6+ {[%clk 0:00:18]}  Kxd6 {[%clk 0:00:52]} 38. Rxb6+ {[%clk 0:00:19]}  Kc7 {[%clk 0:00:47]} 39. Ra6 {[%clk 0:00:19]}  Kb7 {[%clk 0:00:43]} 40. Ra5 {[%clk 0:00:18]}  Kb6 {[%clk 0:00:42]} 41. Rb5+ {[%clk 0:00:18]}  Kc6 {[%clk 0:00:43]} 42. Ra5 {[%clk 0:00:13]}  Rb7 {[%clk 0:00:40]} 43. Rg5 {[%clk 0:00:11]}  Rd7+ {[%clk 0:00:34]} 44. Kc2 {[%clk 0:00:08]}  Re2+ {[%clk 0:00:34]} 45. Kc3 {[%clk 0:00:09]}  Re3+ {[%clk 0:00:34]} 46. Kc2 {[%clk 0:00:09]}  Re2+ {[%clk 0:00:32]} 47. Kc3 {[%clk 0:00:09]}  Re3+ {[%clk 0:00:32]} 48. Kc2 {[%clk 0:00:10]}  Re2+ {[%clk 0:00:22]} 1/2-1/2


[Site "https://www.chess.com"]

[Event "Titled Tuesday Blitz September 27 Early 2022"]
[White "Vogel, Roven"]
[Black "Begmuratov, Khumoyun"]
[WhiteFideId "12908088"]
[BlackFideId "14210207"]
[WhiteElo "2501"]
[BlackElo "1978"]
[Result "1-0"]
[Round "06"]
[TimeControl "180+1"]
[Date "2022.09.27"]
[WhiteClock "0:01:10"]
[BlackClock "0:00:02"]

1. d4 {[%clk 0:02:59]}  Nf6 {[%clk 0:03:00]} 2. Nc3 {[%clk 0:02:57]}  d5 {[%clk 0:02:59]} 3. Bf4 {[%clk 0:02:55]}  e6 {[%clk 0:02:57]} 4. Nb5 {[%clk 0:02:54]}  Na6 {[%clk 0:02:57]} 5. e3 {[%clk 0:02:52]}  c6 {[%clk 0:02:57]} 6. Nc3 {[%clk 0:02:52]}  Nc7 {[%clk 0:02:57]} 7. Nf3 {[%clk 0:02:50]}  Bd6 {[%clk 0:02:57]} 8. Ne5 {[%clk 0:02:50]}  O-O {[%clk 0:02:56]} 9. Bd3 {[%clk 0:02:49]}  c5 {[%clk 0:02:53]} 10. O-O {[%clk 0:02:46]}  c4 {[%clk 0:02:52]} 11. Be2 {[%clk 0:02:45]}  b5 {[%clk 0:02:52]} 12. a3 {[%clk 0:02:42]}  Bb7 {[%clk 0:02:48]} 13. Bf3 {[%clk 0:02:42]}  Ne4 {[%clk 0:02:46]} 14. Bxe4 {[%clk 0:02:21]}  dxe4 {[%clk 0:02:47]} 15. h3 {[%clk 0:02:21]}  f6 {[%clk 0:02:10]} 16. Ng4 {[%clk 0:02:20]}  Bxf4 {[%clk 0:02:11]} 17. exf4 {[%clk 0:02:21]}  Qd6 {[%clk 0:02:08]} 18. Qd2 {[%clk 0:02:17]}  Rad8 {[%clk 0:01:56]} 19. Rad1 {[%clk 0:02:16]}  a5 {[%clk 0:01:45]} 20. Ne2 {[%clk 0:02:04]}  b4 {[%clk 0:01:44]} 21. axb4 {[%clk 0:02:00]}  axb4 {[%clk 0:01:44]} 22. Ne3 {[%clk 0:02:00]}  Ba6 {[%clk 0:01:41]} 23. c3 {[%clk 0:02:00]}  b3 {[%clk 0:01:17]} 24. Ra1 {[%clk 0:01:59]}  Ra8 {[%clk 0:01:07]} 25. Ra5 {[%clk 0:01:52]}  Bb5 {[%clk 0:01:01]} 26. Rfa1 {[%clk 0:01:52]}  Rxa5 {[%clk 0:01:00]} 27. Rxa5 {[%clk 0:01:53]}  Qb6 {[%clk 0:00:53]} 28. Ra1 {[%clk 0:01:51]}  Nd5 {[%clk 0:00:52]} 29. Nxd5 {[%clk 0:01:48]}  exd5 {[%clk 0:00:53]} 30. Ng3 {[%clk 0:01:49]}  f5 {[%clk 0:00:48]} 31. Nf1 {[%clk 0:01:49]}  Bc6 {[%clk 0:00:46]} 32. Ne3 {[%clk 0:01:45]}  g6 {[%clk 0:00:45]} 33. Qc1 {[%clk 0:01:36]}  Ra8 {[%clk 0:00:31]} 34. Rxa8+ {[%clk 0:01:35]}  Bxa8 {[%clk 0:00:32]} 35. Qa1 {[%clk 0:01:36]}  Bc6 {[%clk 0:00:32]} 36. Qa3 {[%clk 0:01:36]}  Qd8 {[%clk 0:00:28]} 37. Qc5 {[%clk 0:01:34]}  Qd7 {[%clk 0:00:28]} 38. g4 {[%clk 0:01:32]}  Kf7 {[%clk 0:00:24]} 39. Kg2 {[%clk 0:01:31]}  h5 {[%clk 0:00:20]} 40. gxf5 {[%clk 0:01:28]}  gxf5 {[%clk 0:00:20]} 41. Kg3 {[%clk 0:01:26]}  Kg6 {[%clk 0:00:18]} 42. Qf8 {[%clk 0:01:26]}  Qe6 {[%clk 0:00:12]} 43. Kh4 {[%clk 0:01:24]}  Bd7 {[%clk 0:00:09]} 44. Qd8 {[%clk 0:01:18]}  Kf7 {[%clk 0:00:06]} 45. Qg5 {[%clk 0:01:14]}  Be8 {[%clk 0:00:04]} 46. Qxf5+ {[%clk 0:01:12]}  Ke7 {[%clk 0:00:04]} 47. Qxe6+ {[%clk 0:01:11]}  Kxe6 {[%clk 0:00:05]} 48. Kg5 {[%clk 0:01:12]}  Bd7 {[%clk 0:00:03]} 49. f5+ {[%clk 0:01:11]}  Kd6 {[%clk 0:00:03]} 50. Kxh5 {[%clk 0:01:10]}  Bc6 {[%clk 0:00:02]} 51. Kg6 {[%clk 0:01:10]} 1-0


[Site "https://www.chess.com"]

[Event "Titled Tuesday Blitz September 27 Early 2022"]
[White "Vovk, Orest"]
[Black "Madaminov, Mukhiddin"]
[WhiteFideId "14113490"]
[BlackFideId "14210703"]
[WhiteElo "2203"]
[BlackElo "2106"]
[Result "0-1"]
[Round "06"]
[TimeControl "180+1"]
[Date "2022.09.27"]
[WhiteClock "0:00:02"]
[BlackClock "0:00:04"]

1. h4 {[%clk 0:02:44]}  d5 {[%clk 0:02:56]} 2. h5 {[%clk 0:02:41]}  c5 {[%clk 0:02:57]} 3. e4 {[%clk 0:02:40]}  dxe4 {[%clk 0:02:56]} 4. Nc3 {[%clk 0:02:41]}  f5 {[%clk 0:02:52]} 5. d3 {[%clk 0:02:35]}  exd3 {[%clk 0:02:45]} 6. Bxd3 {[%clk 0:02:36]}  Nc6 {[%clk 0:02:46]} 7. Nf3 {[%clk 0:02:35]}  Nf6 {[%clk 0:02:45]} 8. Bf4 {[%clk 0:02:30]}  e6 {[%clk 0:02:37]} 9. Nb5 {[%clk 0:02:26]}  Nd5 {[%clk 0:02:35]} 10. Bg5 {[%clk 0:02:21]}  Be7 {[%clk 0:02:33]} 11. Bxe7 {[%clk 0:02:17]}  Qxe7 {[%clk 0:02:34]} 12. Qd2 {[%clk 0:02:09]}  a6 {[%clk 0:02:27]} 13. Nc3 {[%clk 0:02:02]}  O-O {[%clk 0:02:27]} 14. h6 {[%clk 0:01:57]}  g6 {[%clk 0:02:22]} 15. O-O-O {[%clk 0:01:55]}  Qf6 {[%clk 0:02:18]} 16. Bc4 {[%clk 0:01:49]}  Nxc3 {[%clk 0:02:10]} 17. bxc3 {[%clk 0:01:45]}  b5 {[%clk 0:02:09]} 18. Qd6 {[%clk 0:01:42]}  Na5 {[%clk 0:01:27]} 19. Bb3 {[%clk 0:00:52]}  c4 {[%clk 0:01:20]} 20. Qc7 {[%clk 0:00:49]}  Qxc3 {[%clk 0:01:07]} 21. Ng5 {[%clk 0:00:46]}  Qa1+ {[%clk 0:00:27]} 22. Kd2 {[%clk 0:00:46]}  Qd4+ {[%clk 0:00:23]} 23. Ke2 {[%clk 0:00:30]}  Ra7 {[%clk 0:00:22]} 24. Qxa5 {[%clk 0:00:14]}  Qe5+ {[%clk 0:00:21]} 25. Kf1 {[%clk 0:00:11]}  cxb3 {[%clk 0:00:21]} 26. axb3 {[%clk 0:00:11]}  Rd7 {[%clk 0:00:20]} 27. Rxd7 {[%clk 0:00:10]}  Bxd7 {[%clk 0:00:21]} 28. Rh3 {[%clk 0:00:09]}  f4 {[%clk 0:00:19]} 29. Nf3 {[%clk 0:00:05]}  Qc5 {[%clk 0:00:18]} 30. Qd2 {[%clk 0:00:04]}  Bc6 {[%clk 0:00:17]} 31. Nd4 {[%clk 0:00:03]}  e5 {[%clk 0:00:16]} 32. Nxc6 {[%clk 0:00:03]}  Qxc6 {[%clk 0:00:16]} 33. Rd3 {[%clk 0:00:03]}  g5 {[%clk 0:00:11]} 34. Rd6 {[%clk 0:00:03]}  Qe4 {[%clk 0:00:09]} 35. Rd7 {[%clk 0:00:01]}  Qf5 {[%clk 0:00:04]} 36. Rg7+ {[%clk 0:00:01]}  Kh8 {[%clk 0:00:04]} 37. Qd6 {[%clk 0:00:01]}  Qf6 {[%clk 0:00:04]} 38. Qd7 {[%clk 0:00:01]}  Qxh6 {[%clk 0:00:04]} 39. Rxh7+ {[%clk 0:00:02]}  Qxh7 {[%clk 0:00:04]} 40. Qh3 {[%clk 0:00:02]}  Qxh3 {[%clk 0:00:04]} 0-1


[Site "https://www.chess.com"]

[Event "Titled Tuesday Blitz September 27 Early 2022"]
[White "Wachinger, Guenther"]
[Black "Bashirli, Saadat"]
[WhiteFideId "4604261"]
[BlackFideId "13429990"]
[WhiteElo "2212"]
[BlackElo "1173"]
[Result "1-0"]
[Round "06"]
[TimeControl "180+1"]
[Date "2022.09.27"]
[WhiteClock "0:00:48"]
[BlackClock "0:00:30"]

1. e4 {[%clk 0:03:00]}  c5 {[%clk 0:02:59]} 2. Nf3 {[%clk 0:02:58]}  g6 {[%clk 0:03:00]} 3. d4 {[%clk 0:02:52]}  cxd4 {[%clk 0:03:01]} 4. Qxd4 {[%clk 0:02:52]}  Nf6 {[%clk 0:02:58]} 5. Nc3 {[%clk 0:02:51]}  Nc6 {[%clk 0:02:58]} 6. Qd3 {[%clk 0:02:51]}  d6 {[%clk 0:02:50]} 7. Bg5 {[%clk 0:02:51]}  Bg7 {[%clk 0:02:40]} 8. Be2 {[%clk 0:02:47]}  O-O {[%clk 0:02:35]} 9. O-O {[%clk 0:02:47]}  Be6 {[%clk 0:02:33]} 10. Nd5 {[%clk 0:02:46]}  Bxd5 {[%clk 0:02:32]} 11. exd5 {[%clk 0:02:42]}  Nb4 {[%clk 0:02:32]} 12. Qb3 {[%clk 0:02:42]}  Nbxd5 {[%clk 0:02:28]} 13. Qxb7 {[%clk 0:02:43]}  Rb8 {[%clk 0:02:14]} 14. Qxa7 {[%clk 0:02:42]}  Rxb2 {[%clk 0:02:13]} 15. c4 {[%clk 0:02:42]}  Nc3 {[%clk 0:02:11]} 16. Bd3 {[%clk 0:02:39]}  e5 {[%clk 0:02:00]} 17. Qa3 {[%clk 0:02:16]}  Ne2+ {[%clk 0:01:47]} 18. Kh1 {[%clk 0:02:15]}  Qb6 {[%clk 0:01:42]} 19. Be3 {[%clk 0:02:13]}  Nd4 {[%clk 0:01:39]} 20. Bc1 {[%clk 0:01:49]}  Nc2 {[%clk 0:01:15]} 21. Qxb2 {[%clk 0:01:37]}  Qxb2 {[%clk 0:00:53]} 22. Bxb2 {[%clk 0:01:38]}  e4 {[%clk 0:00:47]} 23. Bxc2 {[%clk 0:01:26]}  exf3 {[%clk 0:00:47]} 24. gxf3 {[%clk 0:01:25]}  Rb8 {[%clk 0:00:45]} 25. Bxf6 {[%clk 0:01:25]}  Bxf6 {[%clk 0:00:46]} 26. Rab1 {[%clk 0:01:25]}  Rc8 {[%clk 0:00:45]} 27. Be4 {[%clk 0:00:54]}  Rxc4 {[%clk 0:00:43]} 28. Rb7 {[%clk 0:00:54]}  Rd4 {[%clk 0:00:36]} 29. Rc1 {[%clk 0:00:51]}  Bh4 {[%clk 0:00:30]} 30. Rcc7 {[%clk 0:00:49]}  Bxf2 {[%clk 0:00:28]} 31. Rxf7 {[%clk 0:00:48]}  Rd1+ {[%clk 0:00:28]} 32. Kg2 {[%clk 0:00:48]}  Be3 {[%clk 0:00:29]} 33. Rg7+ {[%clk 0:00:47]}  Kf8 {[%clk 0:00:29]} 34. Rbf7+ {[%clk 0:00:47]}  Ke8 {[%clk 0:00:30]} 35. Bc6+ {[%clk 0:00:48]} 1-0


[Site "https://www.chess.com"]